fUST/lending_fUST_20250210
["ID","MTS","AMOUNT","RATE_DAILY","PERIOD"]
[352589186,1739182247949,-762.97992332,0.00011812,2]
[352589187,1739182247958,-1000.0,0.00011897,2]
[352589188,1739182247969,-500.0,0.00011897,2]
[352589189,1739182247979,-360.60598572,0.00011897,2]
[352589190,1739182247990,-1000.0,0.00011911,2]
[352589191,1739182248000,-762.97992332,0.00011912,2]
[352589192,1739182248011,-500.0,0.00011917,2]
[352589193,1739182248021,-500.0,0.00011917,2]
[352589194,1739182248031,-500.0,0.00011917,2]
[352589195,1739182248042,-500.0,0.00011917,2]
[352589196,1739182248054,-500.0,0.00011917,2]
[352589197,1739182248066,-500.0,0.00011917,2]
[352589198,1739182248078,-536.23,0.00011917,2]
[352589199,1739182248090,-500.0,0.00011917,2]
[352589200,1739182248101,-500.0,0.00011917,2]
[352589201,1739182248111,-500.0,0.00011917,2]
[352589202,1739182248122,-500.0,0.00011917,2]
[352589203,1739182248132,-500.0,0.00011917,2]
[352589204,1739182248143,-507.03,0.00011917,2]
[352589205,1739182248154,-500.0,0.00011917,2]
[352589206,1739182248167,-500.0,0.00011917,2]
[352589207,1739182248177,-500.0,0.00011917,2]
[352589208,1739182248188,-723.46,0.00011917,2]
[352589209,1739182248199,-500.0,0.00011917,2]
[352589210,1739182248210,-151.234386,0.00011917,2]
[352589211,1739182248220,-500.0,0.00011917,2]
[352589212,1739182248230,-753.31,0.00011917,2]
[352589213,1739182248241,-7190.81,0.00011917,2]
[352589214,1739182248252,-500.0,0.00011917,2]
[352589215,1739182248264,-500.0,0.00011917,2]
[352589216,1739182248275,-510.10829942,0.00011917,2]
[352589217,1739182248286,-410.98,0.00011917,2]
[352589218,1739182248298,-554.42,0.00011917,2]
[352589219,1739182248310,-739.79,0.00011917,2]
[352589220,1739182248322,-500.0,0.00011917,2]
[352589221,1739182248333,-1110.24,0.00011917,2]
[352589222,1739182248343,-500.0,0.00011917,2]
[352589223,1739182248354,-632.3,0.00011917,2]
[352589224,1739182248366,-18337.05,0.00011917,2]
[352589225,1739182248377,-1581.79,0.00011917,2]
[352589226,1739182248388,-887.3,0.00011917,2]
[352589227,1739182248399,-3130.27,0.00011917,2]
[352589228,1739182248410,-500.0,0.00011917,2]
[352589229,1739182248421,-500.0,0.00011917,2]
[352589230,1739182248431,-500.0,0.00011917,2]
[352589231,1739182248442,-500.0,0.00011917,2]
[352589232,1739182248453,-1606.85,0.00011917,2]
[352589233,1739182248463,-500.0,0.00011917,2]
[352589234,1739182248475,-857.73,0.00011917,2]
[352589235,1739182248486,-1277.65,0.00011917,2]
[352589236,1739182248497,-500.0,0.00011917,2]
[352589237,1739182248509,-477.84,0.00011917,2]
[352589238,1739182248520,-574.94,0.00011917,2]
[352589239,1739182248531,-500.0,0.00011917,2]
[352589240,1739182248542,-571.46,0.00011917,2]
[352589241,1739182248552,-745.33,0.00011917,2]
[352589242,1739182248562,-976.49,0.00011917,2]
[352589243,1739182248573,-500.0,0.00011917,2]
[352589244,1739182248584,-749.83,0.00011917,2]
[352589245,1739182248594,-500.0,0.00011917,2]
[352589246,1739182248605,-773.12,0.00011917,2]
[352589247,1739182248616,-7576.33,0.00011917,2]
[352589248,1739182248627,-1637.14,0.00011917,2]
[352589249,1739182248638,-2074.85,0.00011917,2]
[352589250,1739182248650,-868.21,0.00011917,2]
[352589251,1739182248661,-500.0,0.00011917,2]
[352589252,1739182248672,-504.38,0.00011917,2]
[352589253,1739182248682,-3197.23,0.00011917,2]
[352589254,1739182248693,-500.0,0.00011917,2]
[352589255,1739182248703,-860.86,0.00011917,2]
[352589256,1739182248714,-1250.97,0.00011917,2]
[352589257,1739182248724,-1627.94,0.00011917,2]
[352589258,1739182248735,-1098.11,0.00011917,2]
[352589259,1739182248746,-151.0,0.00012,2]
[352589260,1739182248757,-241.68109226,0.00012,2]
[352589261,1739182248768,-762.97992332,0.00012012,2]
[352589262,1739182248779,-500.0,0.00012015,2]
[352589263,1739182248791,-500.56880759,0.00012015,2]
[352589264,1739182248802,-500.0,0.00012054,2]
[352589265,1739182248812,-500.0,0.00012054,2]
[352589266,1739182248823,-500.0,0.00012054,2]
[352589267,1739182248834,-500.0,0.00012054,2]
[352589268,1739182248846,-500.0,0.00012054,2]
[352589269,1739182248856,-620.75555883,0.00012054,2]
[352589270,1739182248867,-536.23,0.00012054,2]
[352589271,1739182248878,-500.0,0.00012054,2]
[352589272,1739182248889,-500.0,0.00012054,2]
[352589273,1739182248900,-500.0,0.00012054,2]
[352589274,1739182248911,-495.84577899,0.00012054,2]
[352589275,1739182248922,-500.0,0.00012054,2]
[352589276,1739182248932,-507.03,0.00012054,2]
[352589277,1739182248943,-500.0,0.00012054,2]
[352589278,1739182248953,-151.0,0.00012054,2]
[352589279,1739182248963,-151.0,0.00012054,2]
[352589280,1739182248973,-500.0,0.00012054,2]
[352589281,1739182248983,-500.0,0.00012054,2]
[352589282,1739182248994,-723.46,0.00012054,2]
[352589283,1739182249005,-151.0,0.00012054,2]
[352589284,1739182249017,-151.0,0.00012054,2]
[352589285,1739182249028,-500.0,0.00012054,2]
[352589286,1739182249038,-151.0,0.00012054,2]
[352589287,1739182249049,-256.200398,0.00012054,2]
[352589288,1739182249059,-256.200398,0.00012054,2]
[352589289,1739182249068,-500.0,0.00012054,2]
[352589290,1739182249079,-753.31,0.00012054,2]
[352589291,1739182249089,-7190.81,0.00012054,2]
[352589292,1739182249100,-500.0,0.00012054,2]
[352589293,1739182249110,-500.0,0.00012054,2]
[352589294,1739182249123,-554.42,0.00012054,2]
[352589295,1739182249134,-739.79,0.00012054,2]
[352589296,1739182249145,-500.0,0.00012054,2]
[352589297,1739182249156,-1110.24,0.00012054,2]
[352589298,1739182249171,-500.0,0.00012054,2]
[352589299,1739182249182,-151.0,0.00012054,2]
[352589300,1739182249192,-632.3,0.00012054,2]
[352589301,1739182249203,-18337.05,0.00012054,2]
[352589302,1739182249214,-1581.79,0.00012054,2]
[352589303,1739182249224,-887.3,0.00012054,2]
[352589304,1739182249234,-3130.27,0.00012054,2]
[352589305,1739182249244,-500.0,0.00012054,2]
[352589306,1739182249259,-500.0,0.00012054,2]
[352589307,1739182249269,-500.0,0.00012054,2]
[352589308,1739182249280,-500.0,0.00012054,2]
[352589309,1739182249290,-1606.85,0.00012054,2]
[352589310,1739182249300,-500.0,0.00012054,2]
[352589311,1739182249310,-857.73,0.00012054,2]
[352589312,1739182249320,-1277.65,0.00012054,2]
[352589313,1739182249330,-500.0,0.00012054,2]
[352589314,1739182249340,-574.94,0.00012054,2]
[352589315,1739182249350,-500.0,0.00012054,2]
[352589316,1739182249359,-571.46,0.00012054,2]
[352589317,1739182249369,-745.33,0.00012054,2]
[352589318,1739182249379,-976.49,0.00012054,2]
[352589319,1739182249388,-500.0,0.00012054,2]
[352589320,1739182249466,-749.83,0.00012054,2]
[352589321,1739182249483,-151.0,0.00012054,2]
[352589322,1739182249493,-500.0,0.00012054,2]
[352589323,1739182249503,-773.12,0.00012054,2]
[352589324,1739182249514,-7576.33,0.00012054,2]
[352589325,1739182249524,-151.0,0.00012054,2]
[352589326,1739182249534,-275.534378,0.00012054,2]
[352589327,1739182249544,-1637.14,0.00012054,2]
[352589328,1739182249554,-2074.85,0.00012054,2]
[352589329,1739182249563,-868.21,0.00012054,2]
[352589330,1739182249573,-500.0,0.00012054,2]
[352589331,1739182249583,-504.38,0.00012054,2]
[352589332,1739182249593,-151.0,0.00012054,2]
[352589333,1739182249603,-3197.23,0.00012054,2]
[352589334,1739182249612,-500.0,0.00012054,2]
[352589335,1739182249622,-151.0,0.00012054,2]
[352589336,1739182249631,-860.86,0.00012054,2]
[352589337,1739182249641,-1250.97,0.00012054,2]
[352589338,1739182249651,-1627.94,0.00012054,2]
[352589339,1739182249661,-1098.11,0.00012054,2]
[352589340,1739182249671,-151.0,0.000121,2]
[352589341,1739182249680,-762.97992332,0.00012112,2]
[352589342,1739182249690,-500.0,0.00012191,2]
[352589343,1739182249699,-500.0,0.00012191,2]
[352589344,1739182249709,-500.0,0.00012191,2]
[352589345,1739182249718,-500.0,0.00012191,2]
[352589346,1739182249728,-500.0,0.00012191,2]
[352589347,1739182249737,-536.23,0.00012191,2]
[352589348,1739182249746,-500.0,0.00012191,2]
[352589349,1739182249756,-500.0,0.00012191,2]
[352589350,1739182249767,-500.0,0.00012191,2]
[352589351,1739182249776,-500.0,0.00012191,2]
[352589352,1739182249786,-507.03,0.00012191,2]
[352589353,1739182249797,-500.0,0.00012191,2]
[352589354,1739182249807,-314.91390867,0.00012191,2]
[352589355,1739182249817,-500.0,0.00012191,2]
[352589356,1739182249826,-723.46,0.00012191,2]
[352589357,1739182249836,-151.0,0.00012191,2]
[352589358,1739182249846,-500.0,0.00012191,2]
[352589359,1739182249855,-500.0,0.00012191,2]
[352589360,1739182249865,-151.0,0.00012191,2]
[352589361,1739182249875,-753.31,0.00012191,2]
[352589362,1739182249885,-151.0,0.00012191,2]
[352589363,1739182249895,-7190.81,0.00012191,2]
[352589364,1739182249905,-151.0,0.00012191,2]
[352589365,1739182249915,-500.0,0.00012191,2]
[352589366,1739182249925,-151.0,0.00012191,2]
[352589367,1739182249935,-629.21288575,0.00012191,2]
[352589368,1739182249950,-554.42,0.00012191,2]
[352589369,1739182249960,-739.79,0.00012191,2]
[352589370,1739182249969,-500.0,0.00012191,2]
[352589371,1739182249979,-1110.24,0.00012191,2]
[352589372,1739182249990,-500.0,0.00012191,2]
[352589373,1739182250001,-256.132282,0.00012191,2]
[352589374,1739182250012,-632.3,0.00012191,2]
[352589375,1739182250022,-256.132282,0.00012191,2]
[352589376,1739182250032,-151.770735,0.00012191,2]
[352589377,1739182250043,-18337.05,0.00012191,2]
[352589378,1739182250053,-1581.79,0.00012191,2]
[352589379,1739182250063,-887.3,0.00012191,2]
[352589380,1739182250072,-3130.27,0.00012191,2]
[352589381,1739182250082,-500.0,0.00012191,2]
[352589382,1739182250092,-500.0,0.00012191,2]
[352589383,1739182250102,-500.0,0.00012191,2]
[352589384,1739182250112,-500.0,0.00012191,2]
[352589385,1739182250122,-151.0,0.00012191,2]
[352589386,1739182250132,-1606.85,0.00012191,2]
[352589387,1739182250142,-500.0,0.00012191,2]
[352589388,1739182250153,-857.73,0.00012191,2]
[352589389,1739182250167,-1277.65,0.00012191,2]
[352589390,1739182250177,-500.0,0.00012191,2]
[352589391,1739182250187,-574.94,0.00012191,2]
[352589392,1739182250199,-500.0,0.00012191,2]
[352589393,1739182250208,-571.46,0.00012191,2]
[352589394,1739182250218,-745.33,0.00012191,2]
[352589395,1739182250228,-976.49,0.00012191,2]
[352589396,1739182250238,-500.0,0.00012191,2]
[352589397,1739182250249,-749.83,0.00012191,2]
[352589398,1739182250258,-500.0,0.00012191,2]
[352589399,1739182250269,-773.12,0.00012191,2]
[352589400,1739182250279,-7576.33,0.00012191,2]
[352589401,1739182250288,-1637.14,0.00012191,2]
[352589402,1739182250298,-2074.85,0.00012191,2]
[352589403,1739182250307,-868.21,0.00012191,2]
[352589404,1739182250316,-408.02,0.00012191,2]
[352589405,1739182250326,-504.38,0.00012191,2]
[352589406,1739182250336,-3197.23,0.00012191,2]
[352589407,1739182250346,-500.0,0.00012191,2]
[352589408,1739182250355,-860.86,0.00012191,2]
[352589409,1739182250364,-1250.97,0.00012191,2]
[352589410,1739182250374,-1627.94,0.00012191,2]
[352589411,1739182250384,-1098.11,0.00012191,2]
[352589412,1739182250393,-762.97992332,0.00012212,2]
[352589413,1739182250403,-762.97992332,0.00012312,2]
[352589414,1739182250412,-500.0,0.00012328,2]
[352589415,1739182250422,-500.0,0.00012328,2]
[352589416,1739182250431,-500.0,0.00012328,2]
[352589417,1739182250441,-500.0,0.00012328,2]
[352589418,1739182250451,-500.0,0.00012328,2]
[352589419,1739182250460,-536.23,0.00012328,2]
[352589420,1739182250470,-500.0,0.00012328,2]
[352589421,1739182250485,-500.0,0.00012328,2]
[352589422,1739182250495,-500.0,0.00012328,2]
[352589423,1739182250505,-500.0,0.00012328,2]
[352589424,1739182250516,-507.03,0.00012328,2]
[352589425,1739182250525,-500.0,0.00012328,2]
[352589426,1739182250536,-500.0,0.00012328,2]
[352589427,1739182250545,-723.46,0.00012328,2]
[352589428,1739182250555,-500.0,0.00012328,2]
[352589429,1739182250564,-500.0,0.00012328,2]
[352589430,1739182250574,-753.31,0.00012328,2]
[352589431,1739182250584,-7190.81,0.00012328,2]
[352589432,1739182250594,-500.0,0.00012328,2]
[352589433,1739182250604,-554.42,0.00012328,2]
[352589434,1739182250614,-739.79,0.00012328,2]
[352589435,1739182250625,-500.0,0.00012328,2]
[352589436,1739182250635,-1110.24,0.00012328,2]
[352589437,1739182250645,-500.0,0.00012328,2]
[352589438,1739182250655,-632.3,0.00012328,2]
[352589439,1739182250665,-18337.05,0.00012328,2]
[352589440,1739182250675,-1581.79,0.00012328,2]
[352589441,1739182250685,-887.3,0.00012328,2]
[352589442,1739182250694,-3130.27,0.00012328,2]
[352589443,1739182250704,-500.0,0.00012328,2]
[352589444,1739182250714,-500.0,0.00012328,2]
[352589445,1739182250724,-500.0,0.00012328,2]
[352589446,1739182250734,-500.0,0.00012328,2]
[352589447,1739182250744,-1606.85,0.00012328,2]
[352589448,1739182250754,-500.0,0.00012328,2]
[352589449,1739182250764,-857.73,0.00012328,2]
[352589450,1739182250774,-1277.65,0.00012328,2]
[352589451,1739182250784,-500.0,0.00012328,2]
[352589452,1739182250795,-574.94,0.00012328,2]
[352589453,1739182250804,-500.0,0.00012328,2]
[352589454,1739182250814,-571.46,0.00012328,2]
[352589455,1739182250824,-745.33,0.00012328,2]
[352589456,1739182250833,-976.49,0.00012328,2]
[352589457,1739182250843,-500.0,0.00012328,2]
[352589458,1739182250854,-749.83,0.00012328,2]
[352589459,1739182250863,-500.0,0.00012328,2]
[352589460,1739182250872,-773.12,0.00012328,2]
[352589461,1739182250882,-7576.33,0.00012328,2]
[352589462,1739182250892,-1637.14,0.00012328,2]
[352589463,1739182250902,-2074.85,0.00012328,2]
[352589464,1739182250913,-868.21,0.00012328,2]
[352589465,1739182250922,-504.38,0.00012328,2]
[352589466,1739182250932,-3197.23,0.00012328,2]
[352589467,1739182250942,-500.0,0.00012328,2]
[352589468,1739182250952,-860.86,0.00012328,2]
[352589469,1739182250962,-1250.97,0.00012328,2]
[352589470,1739182250972,-1627.94,0.00012328,2]
[352589471,1739182250982,-1098.11,0.00012328,2]
[352589472,1739182250993,-151.0,0.000124,2]
[352589473,1739182251002,-762.97992332,0.00012412,2]
[352589474,1739182251014,-151.0,0.00012412,2]
[352589475,1739182251024,-500.0,0.00012465,2]
[352589476,1739182251033,-500.0,0.00012465,2]
[352589477,1739182251043,-574.36019354,0.00012465,2]
[352589478,1739182251052,-500.0,0.00012465,2]
[352589479,1739182251062,-500.0,0.00012465,2]
[352589480,1739182251072,-536.23,0.00012465,2]
[352589481,1739182251082,-500.0,0.00012465,2]
[352589482,1739182251092,-500.0,0.00012465,2]
[352589483,1739182251102,-500.0,0.00012465,2]
[352589484,1739182251111,-151.0,0.00012465,2]
[352589485,1739182251121,-500.0,0.00012465,2]
[352589486,1739182251208,-507.03,0.00012465,2]
[352589487,1739182251218,-500.0,0.00012465,2]
[352589488,1739182251228,-363.273098,0.00012465,2]
[352589489,1739182251238,-363.273098,0.00012465,2]
[352589490,1739182251250,-500.0,0.00012465,2]
[352589491,1739182251260,-723.46,0.00012465,2]
[352589492,1739182251270,-500.0,0.00012465,2]
[352589493,1739182251279,-151.0,0.00012465,2]
[352589494,1739182251288,-151.0,0.00012465,2]
[352589495,1739182251298,-500.0,0.00012465,2]
[352589496,1739182251309,-753.31,0.00012465,2]
[352589497,1739182251318,-7190.81,0.00012465,2]
[352589498,1739182251328,-500.0,0.00012465,2]
[352589499,1739182251339,-554.42,0.00012465,2]
[352589500,1739182251349,-739.79,0.00012465,2]
[352589501,1739182251358,-1110.24,0.00012465,2]
[352589502,1739182251368,-500.0,0.00012465,2]
[352589503,1739182251378,-632.3,0.00012465,2]
[352589504,1739182251388,-18337.05,0.00012465,2]
[352589505,1739182251397,-1581.79,0.00012465,2]
[352589506,1739182251407,-887.3,0.00012465,2]
[352589507,1739182251420,-3130.27,0.00012465,2]
[352589508,1739182251434,-500.0,0.00012465,2]
[352589509,1739182251443,-500.0,0.00012465,2]
[352589510,1739182251453,-500.0,0.00012465,2]
[352589511,1739182251462,-500.0,0.00012465,2]
[352589512,1739182251472,-1606.85,0.00012465,2]
[352589513,1739182251482,-857.73,0.00012465,2]
[352589514,1739182251492,-1277.65,0.00012465,2]
[352589515,1739182251502,-500.0,0.00012465,2]
[352589516,1739182251512,-574.94,0.00012465,2]
[352589517,1739182251522,-500.0,0.00012465,2]
[352589518,1739182251532,-571.46,0.00012465,2]
[352589519,1739182251543,-745.33,0.00012465,2]
[352589520,1739182251553,-976.49,0.00012465,2]
[352589521,1739182251563,-500.0,0.00012465,2]
[352589522,1739182251573,-749.83,0.00012465,2]
[352589523,1739182251583,-151.0,0.00012465,2]
[352589524,1739182251593,-500.0,0.00012465,2]
[352589525,1739182251604,-773.12,0.00012465,2]
[352589526,1739182251615,-151.0,0.00012465,2]
[352589527,1739182251625,-7576.33,0.00012465,2]
[352589528,1739182251635,-1637.14,0.00012465,2]
[352589529,1739182251645,-2074.85,0.00012465,2]
[352589530,1739182251655,-868.21,0.00012465,2]
[352589531,1739182251664,-504.38,0.00012465,2]
[352589532,1739182251674,-3197.23,0.00012465,2]
[352589533,1739182251684,-500.0,0.00012465,2]
[352589534,1739182251694,-860.86,0.00012465,2]
[352589535,1739182251704,-1250.97,0.00012465,2]
[352589536,1739182251713,-1627.94,0.00012465,2]
[352589537,1739182251723,-1098.11,0.00012465,2]
[352589538,1739182251733,-762.97992332,0.00012512,2]
[352589539,1739182251742,-151.0,0.000126,2]
[352589540,1739182251752,-4915.28291661,0.00012602,5]
[352589541,1739182251762,-529.423,0.00012602,2]
[352589542,1739182251771,-151.0,0.00012602,2]
[352589543,1739182251781,-500.0,0.00012602,2]
[352589544,1739182251791,-500.0,0.00012602,2]
[352589545,1739182251801,-500.0,0.00012602,2]
[352589546,1739182251811,-780.446601,0.00012602,2]
[352589547,1739182251820,-780.446601,0.00012602,2]
[352589548,1739182251831,-500.0,0.00012602,2]
[352589549,1739182251840,-151.0,0.00012602,2]
[352589550,1739182251850,-536.23,0.00012602,2]
[352589551,1739182251859,-500.0,0.00012602,2]
[352589552,1739182251869,-500.0,0.00012602,2]
[352589553,1739182251878,-500.0,0.00012602,2]
[352589554,1739182251888,-500.0,0.00012602,2]
[352589555,1739182251898,-507.03,0.00012602,2]
[352589556,1739182251908,-500.0,0.00012602,2]
[352589557,1739182251917,-151.0,0.00012602,2]
[352589558,1739182251927,-151.0,0.00012602,2]
[352589559,1739182251937,-500.0,0.00012602,2]
[352589560,1739182251947,-723.46,0.00012602,2]
[352589561,1739182251957,-151.0,0.00012602,2]
[352589562,1739182251967,-500.0,0.00012602,2]
[352589563,1739182251976,-151.602746,0.00012602,2]
[352589564,1739182251986,-256.200398,0.00012602,2]
[352589565,1739182251996,-256.200398,0.00012602,2]
[352589566,1739182252005,-500.0,0.00012602,2]
[352589567,1739182252016,-753.31,0.00012602,2]
[352589568,1739182252025,-7190.81,0.00012602,2]
[352589569,1739182252035,-500.0,0.00012602,2]
[352589570,1739182252046,-554.42,0.00012602,2]
[352589571,1739182252055,-739.79,0.00012602,2]
[352589572,1739182252064,-1110.24,0.00012602,2]
[352589573,1739182252074,-500.0,0.00012602,2]
[352589574,1739182252083,-256.132282,0.00012602,2]
[352589575,1739182252093,-632.3,0.00012602,2]
[352589576,1739182252103,-256.132282,0.00012602,2]
[352589577,1739182252112,-18337.05,0.00012602,2]
[352589578,1739182252122,-1581.79,0.00012602,2]
[352589579,1739182252132,-887.3,0.00012602,2]
[352589580,1739182252142,-3130.27,0.00012602,2]
[352589581,1739182252151,-500.0,0.00012602,2]
[352589582,1739182252165,-500.0,0.00012602,2]
[352589583,1739182252175,-500.0,0.00012602,2]
[352589584,1739182252185,-500.0,0.00012602,2]
[352589585,1739182252195,-151.938607,0.00012602,2]
[352589586,1739182252211,-1606.85,0.00012602,2]
[352589587,1739182252221,-857.73,0.00012602,2]
[352589588,1739182252231,-1277.65,0.00012602,2]
[352589589,1739182252242,-500.0,0.00012602,2]
[352589590,1739182252251,-574.94,0.00012602,2]
[352589591,1739182252261,-281.80556329,0.00012602,2]
[352589592,1739182252271,-571.46,0.00012602,2]
[352589593,1739182252281,-745.33,0.00012602,2]
[352589594,1739182252290,-976.49,0.00012602,2]
[352589595,1739182252300,-500.0,0.00012602,2]
[352589596,1739182252309,-749.83,0.00012602,2]
[352589597,1739182252319,-500.0,0.00012602,2]
[352589598,1739182252329,-773.12,0.00012602,2]
[352589599,1739182252339,-7576.33,0.00012602,2]
[352589600,1739182252348,-1637.14,0.00012602,2]
[352589601,1739182252358,-2074.85,0.00012602,2]
[352589602,1739182252367,-868.21,0.00012602,2]
[352589603,1739182252376,-504.38,0.00012602,2]
[352589604,1739182252386,-3197.23,0.00012602,2]
[352589605,1739182252395,-500.0,0.00012602,2]
[352589606,1739182252405,-860.86,0.00012602,2]
[352589607,1739182252414,-1250.97,0.00012602,2]
[352589608,1739182252423,-1627.94,0.00012602,2]
[352589609,1739182252433,-1098.11,0.00012602,2]
[352589610,1739182252442,-762.97992332,0.00012612,2]
[352589611,1739182252451,-151.0,0.00012691,2]
[352589612,1739182252461,-151.0,0.00012691,2]
[352589613,1739182252471,-762.97992332,0.00012712,2]
[352589614,1739182252481,-12782.20262068,0.00012737,2]
[352589615,1739182252490,-500.0,0.00012739,2]
[352589616,1739182252500,-500.0,0.00012739,2]
[352589617,1739182252510,-500.0,0.00012739,2]
[352589618,1739182252520,-500.0,0.00012739,2]
[352589619,1739182252530,-536.23,0.00012739,2]
[352589620,1739182252539,-500.0,0.00012739,2]
[352589621,1739182252548,-500.0,0.00012739,2]
[352589622,1739182252557,-590.29943482,0.00012739,2]
[352589623,1739182252567,-500.0,0.00012739,2]
[352589624,1739182252577,-507.03,0.00012739,2]
[352589625,1739182252586,-500.0,0.00012739,2]
[352589626,1739182252596,-500.0,0.00012739,2]
[352589627,1739182252606,-723.46,0.00012739,2]
[352589628,1739182252615,-151.0,0.00012739,2]
[352589629,1739182252624,-511.52,0.00012739,2]
[352589630,1739182252633,-500.0,0.00012739,2]
[352589631,1739182252643,-753.31,0.00012739,2]
[352589632,1739182252652,-7190.81,0.00012739,2]
[352589633,1739182252662,-500.0,0.00012739,2]
[352589634,1739182252672,-554.42,0.00012739,2]
[352589635,1739182252681,-739.79,0.00012739,2]
[352589636,1739182252691,-1110.24,0.00012739,2]
[352589637,1739182252701,-500.0,0.00012739,2]
[352589638,1739182252781,-632.3,0.00012739,2]
[352589639,1739182252791,-18337.05,0.00012739,2]
[352589640,1739182252800,-1581.79,0.00012739,2]
[352589641,1739182252810,-887.3,0.00012739,2]
[352589642,1739182252819,-3130.27,0.00012739,2]
[352589643,1739182252828,-500.0,0.00012739,2]
[352589644,1739182252838,-500.0,0.00012739,2]
[352589645,1739182252847,-500.0,0.00012739,2]
[352589646,1739182252857,-500.0,0.00012739,2]
[352589647,1739182252867,-1606.85,0.00012739,2]
[352589648,1739182252876,-857.73,0.00012739,2]
[352589649,1739182252885,-1277.65,0.00012739,2]
[352589650,1739182252894,-500.0,0.00012739,2]
[352589651,1739182252904,-574.94,0.00012739,2]
[352589652,1739182252913,-571.46,0.00012739,2]
[352589653,1739182252923,-745.33,0.00012739,2]
[352589654,1739182252932,-976.49,0.00012739,2]
[352589655,1739182252942,-500.0,0.00012739,2]
[352589656,1739182252951,-749.83,0.00012739,2]
[352589657,1739182252960,-555.22813587,0.00012739,2]
[352589658,1739182252970,-773.12,0.00012739,2]
[352589659,1739182252979,-7576.33,0.00012739,2]
[352589660,1739182252988,-1637.14,0.00012739,2]
[352589661,1739182252998,-2074.85,0.00012739,2]
[352589662,1739182253007,-868.21,0.00012739,2]
[352589663,1739182253017,-504.38,0.00012739,2]
[352589664,1739182253027,-3197.23,0.00012739,2]
[352589665,1739182253036,-500.0,0.00012739,2]
[352589666,1739182253046,-236.434244,0.00012739,2]
[352589667,1739182253056,-860.86,0.00012739,2]
[352589668,1739182253065,-1250.97,0.00012739,2]
[352589669,1739182253075,-1627.94,0.00012739,2]
[352589670,1739182253084,-1098.11,0.00012739,2]
[352589671,1739182253093,-151.0,0.000128,2]
[352589672,1739182253102,-762.97992332,0.00012812,2]
[352589673,1739182253112,-5077.16345964,0.00012876,5]
[352589674,1739182253121,-500.0,0.00012876,2]
[352589675,1739182253130,-500.0,0.00012876,2]
[352589676,1739182253140,-500.0,0.00012876,2]
[352589677,1739182253149,-500.0,0.00012876,2]
[352589678,1739182253158,-151.0,0.00012876,2]
[352589679,1739182253171,-536.23,0.00012876,2]
[352589680,1739182253180,-500.0,0.00012876,2]
[352589681,1739182253189,-500.0,0.00012876,2]
[352589682,1739182253199,-500.0,0.00012876,2]
[352589683,1739182253210,-507.03,0.00012876,2]
[352589684,1739182253219,-500.0,0.00012876,2]
[352589685,1739182253229,-500.0,0.00012876,2]